fUSD/lending_fUSD_20250128
["ID","MTS","AMOUNT","RATE_DAILY","PERIOD"]
[350648670,1738024234468,-1866.15918,0.000165,2]
[350648671,1738024234477,-1866.15918,0.000165,2]
[350648672,1738024234487,-162.572441,0.000165,2]
[350648673,1738024234498,-162.572441,0.000165,2]
[350648674,1738024234507,-162.572441,0.000165,2]
[350648675,1738024234516,-162.572441,0.000165,2]
[350648676,1738024234526,-151.0,0.000165,2]
[350648677,1738024234536,-151.0,0.000165,2]
[350648678,1738024234546,-10000.0,0.000165,2]
[350648679,1738024234555,-10000.0,0.000165,2]
[350648680,1738024234564,-151.0,0.000165,2]
[350648681,1738024234574,-10000.0,0.000165,2]
[350648682,1738024234584,-10000.0,0.000165,2]
[350648683,1738024234594,-10000.0,0.000165,2]
[350648684,1738024234603,-10000.0,0.000165,2]
[350648685,1738024234613,-10000.0,0.000165,2]
[350648686,1738024234623,-10000.0,0.000165,2]
[350648687,1738024234632,-151.0,0.000165,2]
[350648688,1738024234642,-222.48926,0.000165,2]
[350648689,1738024234651,-162.795347,0.000165,2]
[350648690,1738024234661,-162.795347,0.000165,2]
[350648691,1738024234671,-162.795347,0.000165,2]
[350648692,1738024234680,-162.795347,0.000165,2]
[350648693,1738024234689,-151.0,0.000165,2]
[350648694,1738024234698,-151.0,0.000165,2]
[350648695,1738024234708,-151.0,0.000165,2]
[350648696,1738024234717,-151.0,0.000165,2]
[350648697,1738024234727,-151.0,0.000165,2]
[350648698,1738024234736,-151.0,0.000165,2]
[350648699,1738024234746,-151.0,0.000165,2]
[350648700,1738024234755,-151.0,0.000165,2]
[350648701,1738024234765,-151.0,0.000165,2]
[350648702,1738024234774,-151.0,0.000165,2]
[350648703,1738024234783,-151.0,0.000165,2]
[350648704,1738024234793,-151.0,0.000165,2]
[350648705,1738024234801,-151.0,0.000165,2]
[350648706,1738024234810,-151.0,0.000165,2]
[350648707,1738024234820,-151.0,0.000165,2]
[350648708,1738024234829,-151.0,0.000165,2]
[350648709,1738024234840,-151.0,0.000165,2]
[350648710,1738024234849,-151.0,0.000165,2]
[350648711,1738024234858,-151.0,0.000165,2]
[350648712,1738024234868,-151.0,0.000165,2]
[350648713,1738024234877,-151.0,0.000165,2]
[350648714,1738024234885,-151.0,0.000165,2]
[350648715,1738024234894,-151.0,0.000165,2]
[350648716,1738024234903,-151.0,0.000165,2]
[350648717,1738024234912,-151.0,0.000165,2]
[350648718,1738024234922,-151.0,0.000165,2]
[350648719,1738024234931,-151.0,0.000165,2]
[350648720,1738024234940,-151.0,0.000165,2]
[350648721,1738024234949,-151.0,0.000165,2]
[350648722,1738024234958,-151.0,0.000165,2]
[350648723,1738024234968,-151.0,0.000165,2]
[350648724,1738024234977,-151.0,0.000165,2]
[350648725,1738024234986,-151.0,0.000165,2]
[350648726,1738024234995,-151.0,0.000165,2]
[350648727,1738024235004,-151.0,0.000165,2]
[350648728,1738024235013,-151.0,0.000165,2]
[350648729,1738024235022,-151.0,0.000165,2]
[350648730,1738024235031,-151.0,0.000165,2]
[350648731,1738024235041,-151.0,0.000165,2]
[350648732,1738024235050,-151.0,0.000165,2]
[350648733,1738024235060,-151.0,0.000165,2]
[350648734,1738024235069,-272.337688,0.000165,2]
[350648735,1738024235078,-150.0,0.00016512,2]
[350648736,1738024235088,-500.0,0.00016521,2]
[350648737,1738024235097,-2500.0,0.00016524,4]
[350648738,1738024235107,-163.30571518,0.0001654,2]
[350648739,1738024235116,-300.0,0.000166,2]
[350648740,1738024235125,-1997.92103752,0.00016606,2]
[350648741,1738024235136,-438.79,0.00016627,2]
[350648742,1738024235145,-1545.94,0.00016627,2]
[350648743,1738024235154,-368.17,0.00016658,30]
[350648744,1738024235163,-200.0,0.00016665,2]
[350648745,1738024235172,-500.0,0.0001667,2]
[350648746,1738024235181,-400.0,0.0001667,2]
[350648747,1738024235190,-300.0,0.0001667,2]
[350648748,1738024235199,-400.0,0.0001667,2]
[350648749,1738024235208,-300.0,0.0001667,2]
[350648750,1738024235217,-699.97097477,0.00016677,2]
[350648751,1738024235226,-150.0,0.00016684,2]
[350648752,1738024235235,-7577.73,0.00016685,7]
[350648753,1738024235244,-7577.73,0.00016685,7]
[350648754,1738024235253,-151.0,0.00016685,2]
[350648755,1738024235262,-151.0,0.00016685,2]
[350648756,1738024235272,-151.0,0.00016685,2]
[350648757,1738024235281,-220.16,0.00016712,2]
[350648758,1738024235289,-152.0,0.00016731,6]
[350648759,1738024235298,-2278.0,0.00016798,8]
[350648760,1738024235307,-2000.0,0.000168,6]
[350648761,1738024235316,-315.62,0.00016813,2]
[350648762,1738024235326,-150.0,0.00016821,2]
[350648763,1738024235335,-1000.0,0.00016856,2]
[350648764,1738024235343,-163.30571518,0.0001688,2]
[350648765,1738024235352,-274.63278466,0.0001689,2]
[350648766,1738024235361,-500.0,0.00016897,2]
[350648767,1738024235370,-282.46,0.00016897,2]
[350648768,1738024235521,-720.72,0.00016897,2]
[350648769,1738024235530,-340.58,0.00016897,2]
[350648770,1738024235539,-500.0,0.00016899,2]
[350648771,1738024235549,-151.0,0.00016899,2]
[350648772,1738024235557,-4102.35,0.00016899,2]
[350648773,1738024235566,-500.0,0.00016899,2]
[350648774,1738024235576,-500.0,0.00016899,2]
[350648775,1738024235584,-500.0,0.00016899,2]
[350648776,1738024235593,-102315.70929851,0.00016899,2]
[350648777,1738024235609,-2182.31035703,0.00016899,2]
[350648778,1738024235619,-3334.91532517,0.00016899,2]
[350648779,1738024235630,-593.21588132,0.00016899,2]
[350648780,1738024235641,-620.0,0.00016899,2]
[350648781,1738024235652,-42117.21484748,0.00016899,2]
[350648782,1738024235663,-51685.99343701,0.00016899,2]
[350648787,1738024237635,-2602.13,0.00015,2]
[350648788,1738024237645,-181.012406,0.000165,2]
[350648789,1738024237655,-58832.5494225,0.00016899,2]
[350648790,1738024237666,-31148.97399263,0.00016899,2]
[350648791,1738024237677,-11118.64364424,0.00016899,2]
[350648792,1738024237806,-43163.53741599,0.00016899,2]
[350648793,1738024237818,-328.38548,0.00016899,2]
[350648794,1738024237865,-791.56,0.00016899,2]
[350648974,1738024239675,-201.58,0.00014983,2]
[350648976,1738024239684,-857.62,0.00016899,2]
[350648982,1738024239731,-1260.3,0.00016899,2]
[350648989,1738024239788,-546.8013718,0.00016899,2]
[350649001,1738024239899,-1106.0,0.00015452,2]
[350649003,1738024239909,-3393.44044027,0.00016899,2]
[350649006,1738024239920,-8471.56575124,0.00016899,2]
[350649010,1738024239955,-30451.4185078,0.00016899,2]
[350649297,1738024242754,-54300.5119032,0.00016899,2]
[350649300,1738024242765,-1947.848,0.00016899,2]
[350649304,1738024242811,-575.0,0.00016899,2]
[350649305,1738024242822,-328.07484,0.00016899,2]
[350649306,1738024242834,-510.01239405,0.00016899,2]
[350649307,1738024242845,-10798.21970112,0.00016899,2]
[350649308,1738024242868,-477.24801,0.00016899,2]
[350649310,1738024242879,-360.20251,0.00016899,2]
[350649361,1738024246040,-205272.88666611,0.00016899,2]
[350649362,1738024246051,-1269.26404567,0.00016899,2]
[350649363,1738024246065,-3792.70445816,0.00016899,2]
[350649364,1738024246074,-3000.0,0.000169,6]
[350649365,1738024246083,-33112.72217961,0.000169,5]
[350649366,1738024246093,-151.0,0.000169,2]
[350649367,1738024246102,-151.0,0.000169,2]
[350649368,1738024246111,-1958.07,0.000169,31]
[350649369,1738024246121,-1958.07,0.000169,31]
[350649370,1738024246130,-1958.07,0.000169,31]
[350649371,1738024246139,-31.77301122,0.000169,31]
[350649372,1738024246151,-320.72200032,0.000169,31]
[350649374,1738024246165,-1605.57498846,0.000169,31]
[350649376,1738024246175,-1958.07,0.000169,31]
[350649377,1738024246185,-1958.07,0.000169,31]
[350649378,1738024246194,-1958.07,0.000169,31]
[350649379,1738024246203,-1958.07,0.000169,31]
[350649380,1738024246213,-1958.07,0.000169,31]
[350649381,1738024246222,-1958.07,0.000169,31]
[350649382,1738024246231,-1958.07,0.000169,31]
[350649383,1738024246240,-1958.07,0.000169,31]
[350649384,1738024246250,-1958.07,0.000169,31]
[350649385,1738024246259,-1958.07,0.000169,31]
[350649386,1738024246268,-1958.07,0.000169,31]
[350649387,1738024246278,-1958.07,0.000169,31]
[350649388,1738024246287,-151.0,0.000169,2]
[350649389,1738024246297,-151.0,0.000169,2]
[350649390,1738024246306,-193.782112,0.000169,2]
[350649391,1738024246315,-193.782112,0.000169,2]
[350649392,1738024246323,-151.0,0.000169,2]
[350649393,1738024246332,-151.0,0.000169,2]
[350649394,1738024246342,-183.28864949,0.00016904,2]
[350649395,1738024246351,-200.0,0.00016909,2]
[350649396,1738024246359,-1997.92103752,0.00016911,2]
[350649397,1738024246368,-300.0,0.00016921,2]
[350649398,1738024246377,-1048.45,0.00016921,2]
[350649399,1738024246386,-500.0,0.00016921,2]
[350649400,1738024246395,-1446.57,0.00016921,2]
[350649401,1738024246405,-500.0,0.00016921,2]
[350649402,1738024246417,-4815.22,0.00016921,2]
[350649403,1738024246426,-1201.55,0.00016921,2]
[350649404,1738024246435,-151.0,0.00016922,2]
[350649405,1738024246444,-193.782112,0.00016922,2]
[350649406,1738024246453,-193.782112,0.00016922,2]
[350649407,1738024246462,-251.812629,0.00016922,2]
[350649408,1738024246471,-151.0,0.00016922,2]
[350649409,1738024246480,-192.990938,0.00016922,2]
[350649410,1738024246491,-1866.15918,0.00016922,2]
[350649411,1738024246501,-162.572441,0.00016922,2]
[350649412,1738024246510,-162.572441,0.00016922,2]
[350649413,1738024246519,-151.0,0.00016922,2]
[350649414,1738024246529,-10000.0,0.00016922,2]
[350649415,1738024246538,-10000.0,0.00016922,2]
[350649416,1738024246548,-10000.0,0.00016922,2]
[350649417,1738024246557,-162.795347,0.00016922,2]
[350649418,1738024246566,-162.795347,0.00016922,2]
[350649419,1738024246575,-151.0,0.00016922,2]
[350649420,1738024246586,-151.0,0.00016922,2]
[350649421,1738024246595,-500.0,0.00016949,2]
[350649422,1738024246605,-151.0,0.00016949,2]
[350649423,1738024246614,-4102.35,0.00016949,2]
[350649424,1738024246624,-500.0,0.00016949,2]
[350649425,1738024246634,-500.0,0.00016949,2]
[350649426,1738024246643,-412.78964599,0.00016949,2]
[350649427,1738024246653,-12664.04826365,0.0001695,2]
[350649428,1738024246665,-500.0,0.0001695,2]
[350649429,1738024246676,-2920.83529957,0.0001695,2]
[350649430,1738024246687,-1953.04,0.0001695,2]
[350649431,1738024246698,-546.64457333,0.0001695,2]
[350649432,1738024246710,-846.51448067,0.0001695,2]
[350649433,1738024655120,1000.0,0.00011,2]
[350649434,1738024665636,4000.0,0.00012,2]
[350649435,1738024808455,284.05,0.00010137,2]
[350649437,1738025044801,10701.52117101,0.00011865,2]
[350649438,1738025045093,10701.52117101,0.00011915,2]
[350649439,1738025045384,10701.52117101,0.00011836,2]
[350649440,1738025045676,10701.52117101,0.00011912,2]
[350649441,1738025046010,10701.52117101,0.00011863,2]
[350649442,1738025052227,4383.26757219,0.00011827,2]
[350649443,1738025052584,4383.26757219,0.0001183,2]
[350649444,1738025052894,4383.26757219,0.00011911,2]
[350649445,1738025053202,4383.26757219,0.0001188,2]
[350649446,1738025053492,4383.26757219,0.00011875,2]
[350649447,1738025064775,588.51119318,0.00011906,2]
[350649448,1738025065055,588.51119318,0.00011917,2]
[350649449,1738025065313,588.51119318,0.00011867,2]
[350649450,1738025065582,588.51119318,0.00011872,2]
[350649451,1738025065849,588.51119318,0.00011896,2]
[350649452,1738025075937,436.46961969,0.00011881,2]
[350649453,1738025076214,436.46961969,0.00011903,2]
[350649454,1738025076525,436.46961969,0.0001186,2]
[350649455,1738025076790,436.46961969,0.00011894,2]
[350649456,1738025077102,436.46961969,0.00011919,2]
[350649488,1738025385603,597.8748435,0.00022,120]
[350649490,1738025431971,-550.0,0.00013,2]
[350649491,1738025431981,-682.39,0.00013065,2]
[350649492,1738025431990,-2062.82217674,0.00014064,2]
[350649493,1738025431999,-1000.0,0.00014134,2]
[350649494,1738025432008,-500.0,0.00014164,2]
[350649495,1738025432018,-150.0,0.00014166,2]
[350649496,1738025432028,-39.26669442,0.00014371,2]
[350649497,1738025432042,-110.73330558,0.00014371,2]
[350649498,1738025432051,-150.0,0.00014371,2]
[350649499,1738025432061,-150.0,0.000147,2]
[350649500,1738025432070,-150.0,0.0001474,2]
[350649501,1738025432079,-150.0,0.00014764,2]
[350649502,1738025432089,-89.26666442,0.00014765,2]
[350649503,1738025432101,-910.73333558,0.00014765,2]
[350649504,1738025432110,-650.70667942,0.00014765,2]
[350649505,1738025432122,-455.05489191,0.00014765,2]
[350649506,1738025432133,-250.0,0.00014765,2]
[350649507,1738025432144,-26701.84903309,0.00014765,2]
[350649508,1738025432155,-1942.37939558,0.00014765,2]
[350649509,1738025432165,-1.60060442,0.00014765,2]
[350649510,1738025432176,-329.58267654,0.00014765,2]
[350649511,1738025432187,-767.785155,0.00014765,2]
[350649512,1738025432198,-17324.78156404,0.00014765,2]
[350649513,1738025432207,-366.54,0.00014765,2]
[350649514,1738025432216,-1000.0,0.00014953,2]
[350649515,1738025432225,-129.83249505,0.00014983,2]
[350649516,1738025432237,-120.16750495,0.00014983,2]
[350649517,1738025432246,-200.0,0.00014983,2]
[350649518,1738025432254,-3912.75752531,0.00014983,2]
[350649519,1738025432265,-1988.30247469,0.00014983,2]
[350649520,1738025432275,-1000.0,0.00014983,2]
[350649521,1738025432286,-882.86,0.00014983,2]
[350649522,1738025432295,-171.86,0.00014983,2]
[350649523,1738025432304,-418.95,0.00014983,2]
[350649524,1738025432313,-459.33,0.00014983,2]
[350649525,1738025432322,-176.08,0.00014983,2]
[350649526,1738025432331,-176.08,0.00014987,2]
[350649527,1738025432340,-176.08,0.00014991,2]
[350649528,1738025432349,-176.08,0.00014995,2]
[350649529,1738025432358,-176.08,0.00014998,2]
[350649530,1738025432367,-600.0,0.00015,2]
[350649531,1738025432377,-176.08,0.00015002,2]
[350649532,1738025432385,-176.08,0.00015006,2]
[350649533,1738025432394,-176.08,0.0001501,2]
[350649534,1738025432403,-176.08,0.00015014,2]
[350649535,1738025432412,-176.08,0.00015018,2]
[350649536,1738025432421,-176.08,0.00015022,2]
[350649537,1738025432429,-176.08,0.00015026,2]
[350649538,1738025432438,-176.08,0.0001503,2]
[350649539,1738025432447,-176.08,0.00015034,2]
[350649540,1738025432456,-176.08,0.00015038,2]
[350649542,1738025432465,-176.08,0.00015042,2]
[350649544,1738025432474,-176.08,0.00015046,2]
[350649546,1738025432483,-176.08,0.0001505,2]
[350649548,1738025432491,-176.08,0.00015054,2]
[350649550,1738025432500,-176.08,0.00015058,2]
[350649552,1738025432509,-682.39,0.00015329,2]
[350649554,1738025432518,-1000.0,0.00015371,2]
[350649556,1738025432527,-170.0,0.00015886,2]
[350649558,1738025432538,-219.286,0.00015947,2]
[350649560,1738025432547,-583.739,0.00015947,2]
[350649562,1738025432556,-636.0,0.00015947,2]
[350649563,1738025432565,-1866.293,0.00015947,2]
[350649564,1738025432573,-782.0,0.00015947,2]
[350649565,1738025432582,-1262.0,0.00015947,2]
[350649566,1738025432591,-3013.271,0.00015947,2]
[350649567,1738025432600,-910.0,0.00015947,2]
[350649568,1738025432609,-232.795,0.00015947,2]
[350649569,1738025432617,-538.0,0.00015947,2]
[350649570,1738025432626,-3905.0,0.00015947,2]
[350649571,1738025432635,-150.0,0.00015947,2]
[350649572,1738025432643,-500.0,0.00016399,2]
[350649573,1738025432652,-205.92,0.00016399,2]
[350649574,1738025432661,-3801.65991438,0.00016437,2]
[350649575,1738025432670,-1000.0,0.00016437,2]
[350649576,1738025432679,-1341.043,0.00016438,2]
[350649577,1738025432688,-171.19827351,0.00016438,2]
[350649578,1738025432698,-300.0,0.00016438,2]
[350649579,1738025432706,-500.0,0.00016438,2]
[350649580,1738025432715,-150.0,0.00016438,2]
[350649581,1738025432725,-200.0,0.00016481,2]
[350649582,1738025432734,-300.0,0.00016498,2]
[350649583,1738025432742,-150.0,0.00016499,2]
[350649584,1738025432751,-300.0,0.00016499,2]
[350649585,1738025432760,-300.0,0.00016499,2]
[350649586,1738025432769,-900.0,0.000165,2]
[350649587,1738025432778,-900.0,0.000165,2]
[350649588,1738025432789,-900.0,0.000165,2]
[350649589,1738025432801,-900.0,0.000165,2]
[350649590,1738025432810,-900.0,0.000165,2]
[350649591,1738025432819,-900.0,0.000165,2]
[350649592,1738025432828,-900.0,0.000165,2]
[350649593,1738025432838,-900.0,0.000165,2]
[350649594,1738025432847,-900.0,0.000165,2]
[350649595,1738025432856,-900.0,0.000165,2]
[350649596,1738025432865,-500.0,0.00016591,2]
[350649597,1738025432877,-150.0,0.000166,4]
[350649598,1738025432887,-1546.22,0.00016623,2]
[350649599,1738025432896,-875.49,0.00016623,2]
[350649600,1738025432905,-438.93,0.00016623,2]
[350649601,1738025432914,-438.93,0.00016623,2]
[350649602,1738025432924,-150.0,0.00016636,2]
[350649603,1738025432933,-349.76,0.00016658,30]
[350649604,1738025432943,-150.0,0.00016676,2]
[350649605,1738025432952,-150.0,0.00016679,2]
[350649606,1738025432962,-150.0,0.0001668,2]
[350649607,1738025432971,-150.0,0.00016685,2]
[350649608,1738025432981,-150.0,0.00016686,2]
[350649609,1738025432991,-150.0,0.00016688,2]
[350649610,1738025433000,-150.0,0.00016689,2]
[350649611,1738025433010,-1000.0,0.0001669,2]
[350649612,1738025433020,-150.0,0.00016691,2]
[350649613,1738025433030,-150.0,0.00016693,2]
[350649614,1738025433041,-150.0,0.00016702,2]
[350649615,1738025433051,-150.0,0.00016703,2]
[350649616,1738025433061,-1000.0,0.00016706,2]
[350649617,1738025433071,-150.0,0.00016709,2]
[350649618,1738025433081,-150.0,0.00016712,2]
[350649619,1738025433091,-150.0,0.00016712,2]
[350649620,1738025433100,-176.12,0.00016712,2]
[350649621,1738025433110,-150.0,0.00016713,2]
[350649622,1738025433119,-150.0,0.00016714,2]
[350649623,1738025433128,-1000.0,0.00016717,2]
[350649624,1738025433138,-150.0,0.00016717,2]
[350649625,1738025433148,-150.0,0.00016718,2]
[350649626,1738025433157,-150.0,0.00016718,2]
[350649627,1738025433166,-1000.0,0.00016718,2]
[350649628,1738025433176,-184.18102978,0.00016719,2]
[350649629,1738025433186,-150.0,0.00016721,2]
[350649630,1738025433195,-150.0,0.00016722,2]
[350649631,1738025433205,-150.0,0.00016723,2]
[350649632,1738025433215,-150.0,0.00016723,2]
[350649633,1738025433224,-150.0,0.00016725,2]
[350649634,1738025433233,-150.0,0.00016729,2]
[350649635,1738025433242,-150.0,0.00016735,2]
[350649636,1738025433252,-226.31314173,0.00016735,2]
[350649637,1738025433261,-150.0,0.00016737,2]
[350649638,1738025433271,-150.0,0.00016744,2]
[350649639,1738025433449,-150.0,0.00016748,2]
[350649640,1738025433459,-150.0,0.00016752,2]
[350649641,1738025433469,-150.0,0.00016752,2]
[350649642,1738025433479,-150.0,0.00016753,2]
[350649643,1738025433488,-150.0,0.00016755,2]
[350649644,1738025433498,-150.0,0.00016759,2]
[350649645,1738025433508,-150.0,0.0001676,2]
[350649646,1738025433518,-150.0,0.00016763,2]
[350649647,1738025433527,-150.0,0.00016765,2]
[350649648,1738025433539,-150.0,0.00016765,2]
[350649649,1738025433549,-150.0,0.00016766,2]
[350649650,1738025433559,-1000.0,0.00016768,2]
[350649651,1738025433569,-150.0,0.00016771,2]
[350649652,1738025433578,-227.22685122,0.00016773,2]
[350649653,1738025433588,-150.0,0.00016774,2]
[350649654,1738025433598,-150.0,0.00016775,2]
[350649655,1738025433608,-1000.0,0.00016777,2]
[350649656,1738025433617,-150.0,0.00016784,2]
[350649657,1738025433626,-1000.0,0.00016786,2]
[350649658,1738025433635,-150.0,0.00016786,2]
[350649659,1738025433644,-150.0,0.00016786,2]
[350649660,1738025433654,-150.0,0.00016787,2]
[350649661,1738025433663,-150.0,0.00016789,2]
[350649662,1738025433673,-150.0,0.00016796,2]
[350649663,1738025433682,-365.2998,0.00016799,2]
[350649664,1738025433692,-150.0,0.00016799,2]
[350649665,1738025433703,-1398.5447263,0.000168,2]
[350649666,1738025433712,-163.30571518,0.000168,2]
[350649667,1738025433721,-10141.5410224,0.000168,2]
[350649668,1738025433731,-1000.0,0.00016801,2]
[350649669,1738025433741,-150.0,0.00016802,2]
[350649670,1738025433750,-150.0,0.00016808,2]
[350649671,1738025433759,-150.0,0.00016813,2]
[350649672,1738025433768,-284.05,0.00016813,2]
[350649673,1738025433777,-150.0,0.00016817,2]
[350649674,1738025433789,-150.0,0.00016818,2]
[350649675,1738025433800,-166.50684421,0.00016826,2]
[350649676,1738025433810,-150.0,0.00016827,2]
[350649677,1738025433820,-150.0,0.00016828,2]
[350649678,1738025433829,-150.0,0.00016829,2]
[350649679,1738025433838,-150.0,0.00016832,2]
[350649680,1738025433848,-150.0,0.00016832,2]
[350649681,1738025433858,-500.0,0.00016833,2]
[350649682,1738025433868,-150.0,0.00016836,2]
[350649683,1738025433878,-150.0,0.0001684,2]
[350649684,1738025433887,-150.0,0.0001684,2]
[350649685,1738025433897,-3379.5619,0.0001684,2]
[350649686,1738025433907,-1000.0,0.0001684,2]
[350649687,1738025433916,-1000.0,0.0001684,2]
[350649688,1738025433926,-150.0,0.00016846,2]
[350649689,1738025433936,-200000.0,0.0001685,2]
[350649690,1738025433945,-150.0,0.0001685,2]
[350649691,1738025433955,-6791.2877,0.0001685,2]
[350649692,1738025433964,-150.0,0.00016852,2]
[350649693,1738025433974,-150.0,0.00016855,2]
[350649694,1738025433983,-1000.0,0.00016856,2]
[350649695,1738025433993,-882.86,0.00016856,2]
[350649696,1738025434002,-150.0,0.0001686,2]
[350649697,1738025434011,-150.0,0.00016863,2]
[350649698,1738025434021,-150.0,0.00016864,2]
[350649699,1738025434033,-150.0,0.00016865,2]
[350649700,1738025434043,-150.0,0.00016866,2]
[350649701,1738025434053,-150.0,0.00016872,2]
[350649702,1738025434063,-150.0,0.00016875,2]
[350649703,1738025434073,-150.0,0.00016875,2]
[350649704,1738025434082,-150.0,0.00016877,2]
[350649705,1738025434091,-150.0,0.0001688,2]
[350649706,1738025434100,-150.0,0.00016882,2]
[350649707,1738025434110,-150.0,0.00016882,2]
[350649708,1738025434119,-150.0,0.00016882,2]
[350649709,1738025434128,-150.0,0.00016883,2]
[350649710,1738025434138,-150.0,0.00016893,2]
[350649711,1738025434147,-150.0,0.00016894,2]
[350649712,1738025434156,-150.0,0.00016898,2]
[350649713,1738025434166,-300.0,0.00016899,2]
[350649714,1738025434176,-300.0,0.00016899,2]
[350649715,1738025434186,-300.0,0.00016899,2]
[350649716,1738025434195,-1644.94,0.000169,31]
[350649717,1738025434204,-1644.94,0.000169,31]
[350649718,1738025434214,-1644.94,0.000169,31]
[350649719,1738025434223,-1644.94,0.000169,31]
[350649720,1738025434232,-1644.94,0.000169,31]
[350649721,1738025434242,-1644.94,0.000169,31]
[350649722,1738025434251,-1644.94,0.000169,31]
[350649723,1738025434261,-1644.94,0.000169,31]
[350649724,1738025434270,-1644.94,0.000169,31]
[350649725,1738025434279,-1644.94,0.000169,31]
[350649726,1738025434290,-1644.94,0.000169,31]
[350649727,1738025434299,-1644.94,0.000169,31]
[350649728,1738025434309,-1644.94,0.000169,31]
[350649729,1738025434318,-1644.94,0.000169,31]
[350649730,1738025434328,-1644.94,0.000169,31]
[350649731,1738025434337,-1644.94,0.000169,31]
[350649732,1738025434347,-150.0,0.000169,2]
[350649733,1738025434356,-930.81663051,0.00016904,2]
[350649734,1738025434365,-500.0,0.00016904,2]
[350649735,1738025434374,-150.0,0.00016908,2]
[350649736,1738025434384,-300.0,0.00016909,2]
[350649737,1738025434394,-150.89967517,0.00016915,2]
[350649738,1738025434403,-150.0,0.00016918,2]
[350649739,1738025434412,-223.68685827,0.00016918,2]
[350649740,1738025434422,-150.0,0.00016919,2]
[350649741,1738025434431,-150.0,0.00016921,2]
[350649742,1738025434440,-300.0,0.00016921,2]
[350649743,1738025434450,-150.0,0.00016925,2]
[350649744,1738025434459,-150.0,0.00016925,2]
[350649745,1738025434469,-150.0,0.00016926,2]
[350649746,1738025434478,-150.0,0.00016931,2]
[350649747,1738025434487,-150.0,0.00016935,2]
[350649748,1738025434497,-150.0,0.00016937,2]
[350649749,1738025434506,-300.0,0.00016938,2]
[350649750,1738025434516,-150.0,0.00016939,2]
[350649751,1738025434525,-150.0,0.00016939,2]
[350649752,1738025434536,-287.3937333,0.00016939,2]
[350649753,1738025434545,-871.0231376,0.00016939,2]
[350649754,1738025434554,-288.7887083,0.00016939,2]
[350649755,1738025434563,-964.38,0.00016939,2]
[350649756,1738025434572,-500.0,0.00016939,2]
[350649757,1738025434581,-3210.15,0.00016939,2]
[350649758,1738025434589,-569.0512185,0.00016939,2]
[350649759,1738025434599,-801.03,0.00016939,2]
[350649760,1738025434608,-2084.6883171,0.00016939,2]
[350649761,1738025434616,-62307.0,0.0001694,3]
[350649762,1738025434625,-150.0,0.00016941,2]
[350649763,1738025434634,-1000.0,0.00016941,2]
[350649764,1738025434643,-150.0,0.00016944,2]
[350649765,1738025434653,-150.0,0.00016945,2]
[350649766,1738025434662,-150.0,0.00016946,2]
[350649767,1738025434671,-150.0,0.00016946,2]
[350649768,1738025434680,-742.65,0.00016949,2]
[350649769,1738025434690,-500.0,0.00016949,2]